bitfinex/quotes_ETHUSD_20241216
["timestamp","ask_amount","ask_price","bid_price","bid_amount"]
[1734328776693,4.56916391,3964.8,3963.7,0.8216]
[1734328776895,2.18410453,3964.7,3963.9,0.7697]
[1734328777145,3.57935484,3964.8,3963.9,0.7697]
[1734328777296,2.52227,3964.7,3963.9,0.7697]
[1734328777496,1.05712484,3964.9,3963.9,0.7697]
[1734328777842,2.52252,3964.3,3963.9,0.7697]
[1734328782202,2.52264,3964.1,3963.9,0.7697]
[1734328782434,2.52262,3964.2,3963.3,0.8052]
[1734328782802,2.52251,3964.3,3963.3,0.8052]
[1734328783041,0.90075012,3964.3,3963.3,0.8052]
[1734328783217,2.5227,3964.0,3963.3,0.8052]
[1734328787738,2.37693391,3964.4,3963.3,0.8052]
[1734328787739,2.5228,3963.9,3963.3,0.8052]
[1734328788619,1.38712484,3964.4,3963.3,0.8052]
[1734328788826,2.73456834,3964.3,3963.3,0.8052]
[1734328789035,2.52273,3964.0,3963.3,0.8052]
[1734328790256,2.52291,3963.7,3963.3,0.8052]
[1734328790549,2.52278,3963.9,3963.3,0.8052]
[1734328790752,1.05712484,3964.2,3963.3,0.8052]
[1734328790753,1.91495957,3964.2,3963.3,0.8052]
[1734328790919,3.39635957,3964.1,3963.3,0.8052]
[1734328791125,2.52264,3964.1,3963.3,0.8052]
[1734328791651,3.39648261,3964.0,3963.3,0.8052]
[1734328791980,2.52271,3964.0,3963.3,0.8052]
[1734328792113,2.52271,3964.0,3963.3,0.99010609]
[1734328792462,2.85261,3964.2,3963.3,0.99010609]
[1734328792621,2.85261,3964.2,3963.4,1.17800786]
[1734328792810,2.85261,3964.2,3963.5,0.8315]
[1734328794607,2.52261,3964.2,3963.5,0.8315]
[1734328795048,2.85246,3964.4,3963.5,1.0375267]
[1734328795652,0.87379778,3964.3,3963.5,1.0375267]
[1734328796954,2.85246,3964.4,3963.5,1.0375267]
[1734328797170,0.87382585,3964.3,3963.5,1.0375267]
[1734328797677,2.52259,3964.2,3963.5,1.0375267]
[1734328797981,2.04693391,3964.4,3963.5,0.8315]
[1734328798178,2.52295,3963.6,3963.5,0.8315]
[1734328798491,2.52295,3963.6,3963.1,0.8241]
[1734328799341,0.33,3964.0,3963.1,1.81390907]
[1734328799542,0.33,3964.0,3963.3,0.8241]
[1734328799738,0.33,3964.0,3963.3,0.02522887]
[1734328800074,0.33,3964.0,3963.5,0.793]
[1734328800240,1.38712484,3964.4,3963.5,0.793]
[1734328800442,2.52264,3964.1,3963.5,0.793]
[1734328802290,2.52251,3964.3,3963.5,0.793]
[1734328802504,2.52276,3964.0,3963.5,0.793]
[1734328802792,2.52277,3963.9,3963.5,0.793]
[1734328803084,0.69370261,3964.2,3963.5,0.793]
[1734328803290,2.52285,3963.8,3963.5,0.793]
[1734328804058,1.05712484,3964.1,3963.5,0.793]
[1734328804265,2.52289,3963.7,3963.5,0.793]
[1734328804790,1.98643319,3964.1,3963.5,0.793]
[1734328805012,3.90969484,3964.2,3963.5,0.793]
[1734328805206,0.87411421,3964.1,3963.5,0.793]
[1734328806185,2.52265,3964.1,3963.5,0.793]
[1734328807070,2.04693391,3964.3,3963.5,0.793]
[1734328807274,3.63899004,3964.2,3963.5,0.793]
[1734328807471,0.98980907,3964.0,3963.5,0.793]
[1734328807687,2.52289,3963.7,3963.2,0.8131]
[1734328808754,1.38712484,3964.0,3963.2,0.8131]
[1734328808964,1.38712484,3964.0,3963.3,0.7635]
[1734328808965,2.85276,3964.0,3963.3,0.7635]
[1734328809761,2.52277,3963.9,3963.3,0.7635]
[1734328810177,2.52284,3963.8,3963.3,0.7635]
[1734328810406,0.1783387,3963.9,3963.3,0.7635]
[1734328810582,0.87433772,3963.8,3963.3,0.7635]
[1734328810786,0.1783387,3963.9,3963.3,0.7635]
[1734328810787,2.52291,3963.7,3963.3,0.7635]
[1734328811173,3.03072826,3963.7,3963.3,0.7635]
[1734328811377,2.52298,3963.6,3963.3,0.7635]
[1734328811790,0.50781826,3963.7,3963.3,0.7635]
[1734328811992,2.52306,3963.5,3963.0,0.7513]
[1734328812905,2.5231,3963.4,3963.0,0.7513]
[1734328813091,2.52315,3963.3,3963.0,0.7513]
[1734328814267,0.01,3963.0,3962.3,0.7754]
[1734328814477,2.52365,3962.5,3962.0,0.7754]
[1734328814717,2.52385,3962.2,3962.0,0.7754]
[1734328815123,2.52374,3962.4,3962.0,0.7754]
[1734328815475,0.35134591,3962.5,3962.0,0.7754]
[1734328815476,2.52378,3962.3,3962.0,0.7754]
[1734328816174,2.52378,3962.3,3961.7,0.7557]
[1734328816478,2.52398,3962.0,3961.7,0.7557]
[1734328816672,0.98980907,3962.3,3961.7,0.7557]
[1734328816875,0.98980907,3962.0,3961.5,0.7431]
[1734328817080,2.52418,3961.7,3961.5,0.7431]
[1734328817287,0.98980907,3961.6,3961.5,0.7431]
[1734328818122,1.37520798,3961.6,3961.5,0.7431]
[1734328818386,1.70520798,3961.6,3961.5,0.7431]
[1734328818752,1.70520798,3961.6,3961.5,0.76553193]
[1734328819076,1.70520798,3961.6,3961.5,0.7431]
[1734328819960,0.71539891,3961.6,3961.5,0.7431]
[1734328820159,0.71539891,3961.6,3961.5,0.76667224]
[1734328820349,0.71539891,3961.6,3961.5,0.7431]
[1734328820551,0.33,3961.6,3961.5,0.7431]
[1734328820835,0.33,3961.6,3961.5,0.76685632]
[1734328821373,2.85374,3962.4,3961.5,0.76685632]
[1734328821540,0.33,3962.4,3961.5,0.76685632]
[1734328821740,0.33,3962.4,3961.6,0.8239]
[1734328822201,0.33,3962.4,3961.8,0.8239]
[1734328822537,0.33,3962.4,3961.9,0.02364232]
[1734328822814,2.86376,3962.4,3961.9,0.02364232]
[1734328822971,0.286376,3962.3,3961.9,0.02364232]
[1734328823167,0.286376,3962.3,3961.8,0.8239]
[1734328823900,0.33,3962.4,3961.8,0.8239]
[1734328824278,0.33,3962.4,3961.9,0.02341672]
[1734328824688,2.52358,3962.7,3961.9,0.02341672]
[1734328825476,0.01,3963.0,3962.0,0.833]
[1734328825477,0.33,3963.0,3962.0,0.833]
[1734328825692,0.33,3963.0,3962.2,0.833]
[1734328826084,0.33,3963.0,3962.3,0.02313844]
[1734328826904,0.33,3963.0,3962.4,0.7809]
[1734328827404,0.33,3963.0,3962.5,0.02302719]
[1734328827982,2.14683252,3963.5,3962.6,0.7809]
[1734328827983,0.33,3963.4,3962.6,0.7809]
[1734328828395,4.99988252,3963.5,3962.7,0.02299705]
[1734328828595,4.99988252,3963.5,3962.6,0.7809]
[1734328828596,2.52311,3963.4,3962.6,0.7809]
[1734328828914,2.52311,3963.4,3962.7,0.02245579]
[1734328829278,2.52318,3963.3,3962.7,0.02245579]
[1734328830223,2.52327,3963.1,3962.7,0.02245579]
[1734328830598,2.52342,3962.9,3962.7,0.02245579]
[1734328830799,0.252342,3962.8,3962.3,0.7934]
[1734328831030,0.28953768,3963.4,3962.4,0.02244372]
[1734328831398,0.28953768,3963.4,3961.9,0.7934]
[1734328831399,0.01,3962.7,3961.9,0.7934]
[1734328831626,0.01,3962.7,3962.0,0.02228377]
[1734328831799,2.52367,3962.5,3962.0,0.02228377]
[1734328832122,2.52367,3962.5,3961.9,0.7934]
[1734328832123,0.253367,3962.5,3961.9,0.7934]
[1734328832441,2.52373,3962.4,3962.0,0.02228377]
[1734328832640,2.52373,3962.4,3961.9,0.7934]
[1734328833242,2.5238,3962.3,3961.9,0.7934]
[1734328833483,0.2777167,3962.2,3961.9,0.7934]
[1734328833658,2.52385,3962.2,3961.9,0.7934]
[1734328834016,2.85374,3962.4,3961.9,0.7934]
[1734328836135,2.52379,3962.3,3961.9,0.7934]
[1734328837155,2.52391,3962.1,3961.9,0.7934]
[1734328837466,2.85378,3962.3,3961.9,0.7934]
[1734328837668,0.33,3962.3,3961.9,0.7934]
[1734328837967,3.0,3963.5,3961.9,0.7934]
[1734328837968,0.34,3963.1,3961.9,0.7934]
[1734328838110,4.66986252,3963.5,3962.1,0.8107]
[1734328838111,2.85315,3963.3,3962.1,0.8107]
[1734328838311,2.85315,3963.3,3962.3,0.8107]
[1734328838312,0.33,3963.3,3962.3,0.8107]
[1734328838508,0.33,3963.3,3962.5,0.8107]
[1734328838941,0.33,3963.3,3962.7,0.8274]
[1734328839464,0.33,3963.3,3962.8,0.02226994]
[1734328840164,2.52298,3963.6,3962.8,0.02226994]
[1734328840809,0.33,3963.7,3962.8,0.02226994]
[1734328841038,0.33,3963.7,3962.9,0.7724]
[1734328841221,0.33,3963.7,3963.0,0.02227077]
[1734328841768,2.85291,3963.7,3963.0,0.02227077]
[1734328842122,0.33,3963.7,3963.0,0.02227077]
[1734328842324,2.14683252,3963.9,3963.0,0.02227077]
[1734328842325,2.85276,3963.9,3963.0,0.02227077]
[1734328842636,0.33,3964.0,3963.1,2.52327]
[1734328842973,0.33,3964.6,3963.5,0.7724]
[1734328843274,2.52222,3964.8,3963.6,0.7728]
[1734328843407,2.52226,3964.7,3963.6,0.7728]
[1734328843608,2.52232,3964.6,3963.6,0.7728]
[1734328844113,0.33,3965.0,3963.6,0.7728]
[1734328844114,2.52217,3964.9,3963.6,0.7728]
[1734328844333,0.54768898,3964.8,3963.6,0.7728]
[1734328844563,3.06988898,3964.8,3963.6,0.7728]
[1734328845427,2.52226,3964.7,3963.6,0.7728]
[1734328845764,0.54768898,3964.8,3963.6,0.7728]
[1734328845909,2.52232,3964.6,3963.6,0.7728]
[1734328846122,2.8293209,3964.6,3963.6,0.7728]
[1734328847913,2.52239,3964.5,3963.6,0.7728]
[1734328848832,0.3070009,3964.6,3963.6,0.7728]
[1734328849165,2.85226,3964.7,3963.6,0.7728]
[1734328849526,2.51603355,3964.6,3963.6,0.7728]
[1734328849722,2.52238,3964.5,3963.6,0.7728]
[1734328852629,2.47683252,3964.7,3963.6,0.7728]
[1734328852874,2.52271,3964.0,3963.6,0.7728]
[1734328853024,0.56467315,3964.6,3963.6,0.7728]
[1734328853222,2.52257,3964.2,3963.6,0.7728]
[1734328853975,2.5227,3964.0,3963.6,0.7728]
[1734328854285,0.56467315,3964.6,3963.6,0.7728]
[1734328854286,0.25227,3963.9,3963.6,0.7728]
[1734328854463,2.52258,3964.2,3963.6,0.7728]
[1734328855425,0.33,3964.5,3963.6,0.7728]
[1734328855426,2.52264,3964.1,3963.6,0.7728]
[1734328856162,0.33,3964.5,3963.6,0.7728]
[1734328856367,2.52257,3964.3,3963.6,0.7728]
[1734328856560,2.52258,3964.2,3963.6,0.7728]
[1734328857680,2.52264,3964.1,3963.6,0.7728]
[1734328860540,0.33,3964.3,3963.6,0.7728]
[1734328860743,0.33,3964.2,3963.6,0.7728]
[1734328862078,2.85258,3964.2,3963.6,0.7728]
[1734328862432,0.33,3964.2,3963.6,0.7728]
[1734328862979,0.33,3964.2,3963.6,2.52294]
[1734328863175,0.33,3964.2,3963.8,0.7943]
[1734328863776,2.52227,3964.7,3963.8,0.7943]
[1734328865594,0.33,3964.8,3963.8,0.7943]
[1734328865791,0.33,3964.8,3963.9,0.8033]
[1734328866356,2.85209,3965.0,3963.9,0.8033]
[1734328866591,2.85209,3965.0,3964.0,0.8033]
[1734328866953,0.33,3965.0,3964.0,0.8033]
[1734328867291,2.52214,3964.9,3963.1,3.51077993]
[1734328867500,2.52214,3964.9,3963.2,0.55]
[1734328867657,0.33,3965.0,3963.5,2.52297]
[1734328867658,2.52227,3964.7,3963.5,2.52297]
[1734328869661,2.5224,3964.5,3963.3,3.87309024]
[1734328870054,2.5224,3964.5,3963.4,3.0]
[1734328870268,2.5224,3964.5,3963.5,0.7797]
[1734328870464,2.80764,3964.5,3963.5,0.7797]
[1734328872821,0.28524,3964.5,3963.5,0.7797]
[1734328872981,2.85226,3964.7,3963.4,0.7653]
[1734328874109,2.85226,3964.7,3963.6,2.52294]
[1734328874267,2.85226,3964.7,3963.7,0.7828]
[1734328874463,0.33,3964.7,3963.7,3.30569]
[1734328874811,0.33,3964.7,3963.8,0.7828]
[1734328875768,2.52213,3964.9,3963.9,0.7527]
[1734328876435,2.85203,3965.1,3963.9,2.52276]
[1734328876586,2.52208,3965.0,3964.0,0.7527]
[1734328876917,2.7981804,3965.0,3964.0,0.7527]
[1734328877425,2.5129724,3965.0,3964.0,0.7527]
[1734328878513,0.33,3965.1,3964.0,0.7527]
[1734328878866,0.33,3965.4,3964.0,0.7527]
[1734328879072,2.52196,3965.2,3964.1,0.8011]
[1734328879270,0.8133,3965.5,3963.7,0.330569]
[1734328879271,3.66509,3965.5,3964.4,0.8011]
[1734328879612,0.33,3965.5,3964.5,0.8011]
[1734328879816,2.52163,3965.7,3964.7,0.7825]
[1734328880183,0.33,3965.8,3964.7,0.7825]
[1734328880585,2.85156,3965.8,3964.7,0.7825]
[1734328880912,296.92656909,3966.0,3964.8,0.8052]
[1734328880913,2.52431156,3965.9,3964.8,0.8052]
[1734328881083,2.55613921,3965.8,3964.8,0.8052]
[1734328882011,2.52176,3965.5,3964.8,0.8052]
[1734328883027,2.55613921,3965.8,3964.8,0.8052]
[1734328883204,2.52181,3965.4,3964.8,0.8052]
[1734328883599,2.5217,3965.6,3964.8,0.8052]
[1734328885704,2.55613921,3965.8,3964.8,0.8052]
[1734328885900,2.52175,3965.5,3964.8,0.8052]
[1734328887388,2.55613921,3965.7,3964.8,0.8052]
[1734328887696,2.52179,3965.5,3964.8,0.8052]
[1734328888545,5.07776921,3965.7,3964.8,0.8052]
[1734328890729,2.52169,3965.6,3964.8,0.8052]
[1734328890937,3.318361,3965.6,3964.8,0.8052]
[1734328891325,0.796671,3965.6,3964.8,0.8052]
[1734328891547,2.55613921,3965.7,3964.8,0.8052]
[1734328892962,0.33280156,3965.9,3965.2,2.52193]
[1734328893182,0.00280156,3965.9,3965.2,3.0]
[1734328893327,296.43418229,3966.0,3965.6,2.52166]
[1734328893527,296.43418229,3966.0,3965.7,0.8265]
[1734328899313,296.43418229,3966.0,3965.6,3.0]
[1734328899314,296.43418229,3966.0,3965.8,0.634818]
[1734328899527,296.43418229,3966.0,3965.9,0.818]
[1734328900449,296.43418229,3966.0,3965.9,3.818]
[1734328900570,296.43418229,3966.0,3965.9,0.818]
[1734328900770,296.43418229,3966.0,3965.9,6.33949]
[1734328904228,296.43418229,3966.0,3965.9,0.818]
[1734328910073,296.43418229,3966.0,3965.9,6.973451]
[1734328910249,296.43418229,3966.0,3965.9,8.48632252]
[1734328910604,296.43418229,3966.0,3965.9,9.03632252]
[1734328912557,296.43418229,3966.0,3965.9,9.55186825]
[1734328918049,296.42315528,3966.0,3965.9,9.55186825]
[1734328918244,296.42315528,3966.0,3965.9,10.51985192]
[1734328922971,296.42315528,3966.0,3965.9,11.68960246]
[1734328924411,296.42315528,3966.0,3965.9,11.68980651]
[1734328925222,296.42315528,3966.0,3965.9,12.7396313]
[1734328925415,286.40322631,3966.0,3965.9,10.72182284]
[1734328925734,286.40322631,3966.0,3965.9,14.93596709]
[1734328925876,281.65106631,3966.0,3965.9,14.93596709]
[1734328926076,276.33015763,3966.0,3965.9,17.03561668]
[1734328926267,276.33015763,3966.0,3965.9,15.86566209]
[1734328926781,276.13555763,3966.0,3965.9,15.86566209]
[1734328927225,275.97555763,3966.0,3965.9,15.86566209]
[1734328928916,275.97555763,3966.0,3965.9,13.7660125]
[1734328929089,275.97555763,3966.0,3965.9,15.2790125]
[1734328929816,275.97555763,3966.0,3965.9,16.84862042]
[1734328930130,275.97555763,3966.0,3965.9,15.2790125]
[1734328930335,275.32015763,3966.0,3965.9,16.81663594]
[1734328930635,275.32015763,3966.0,3965.9,16.81691795]
[1734328930935,275.32015763,3966.0,3965.9,16.81685655]
[1734328931433,275.32015763,3966.0,3965.9,12.65021318]
[1734328931651,275.32015763,3966.0,3965.9,9.55186825]
[1734328932542,275.32015763,3966.0,3965.9,10.5988993]
[1734328932858,275.32015763,3966.0,3965.9,9.55186825]
[1734328933352,275.32015763,3966.0,3965.9,11.0810556]
[1734328934160,275.32015763,3966.0,3965.9,10.90927648]
[1734328934462,268.9914772,3966.0,3965.9,10.90927648]
[1734328934605,268.42977231,3966.0,3965.9,10.90927648]
[1734328935456,268.42977231,3966.0,3965.9,13.00892607]
[1734328936505,268.42977231,3966.0,3965.9,10.90927648]
[1734328937505,268.42977231,3966.0,3965.9,13.5337689]
[1734328938458,268.42977231,3966.0,3965.9,10.90927648]
[1734328938751,268.42977231,3966.0,3965.9,12.54746146]
[1734328938909,268.42977231,3966.0,3965.9,9.92174978]
[1734328939602,268.42977231,3966.0,3965.9,8.93422308]
[1734328939962,268.42977231,3966.0,3965.9,12.54755886]
[1734328940143,268.42977231,3966.0,3965.9,9.92174978]
[1734328940760,268.42977231,3966.0,3965.9,12.54755886]
[1734328943646,268.42977231,3966.0,3965.9,12.67339112]
[1734328944651,268.42977231,3966.0,3965.9,10.04758204]
[1734328944852,268.42977231,3966.0,3965.9,11.03510874]
[1734328945059,268.23121662,3966.0,3965.9,12.95360652]
[1734328945822,268.11853382,3966.0,3965.9,16.10299743]
[1734328946311,267.95184687,3966.0,3965.9,16.10697558]
[1734328946606,267.74151201,3966.0,3965.9,16.10697558]
[1734328949559,267.74151201,3966.0,3965.9,12.95360652]
[1734328949931,267.74151201,3966.0,3965.9,14.18982229]
[1734328950118,267.74151201,3966.0,3965.9,16.10832007]
[1734328950904,267.74151201,3966.0,3965.9,16.10847538]
[1734328951472,267.74151201,3966.0,3965.9,12.95360652]
[1734328956034,267.67371697,3966.0,3965.9,12.95360652]
[1734328956527,267.53899368,3966.0,3965.9,12.95360652]
[1734328958637,262.49611368,3966.0,3965.9,12.95360652]
[1734328958792,260.51399368,3966.0,3965.9,13.20360652]
[1734328958976,256.02443368,3966.0,3965.9,13.20360652]
[1734328959179,256.02443368,3966.0,3965.9,17.37060652]
[1734328959425,253.50299368,3966.0,3965.9,17.37060652]
[1734328959934,249.72083368,3966.0,3965.9,17.37060652]
[1734328960280,248.46011368,3966.0,3965.9,17.37060652]
[1734328961088,247.19939368,3966.0,3965.9,17.37060652]
[1734328962983,244.67795368,3966.0,3965.9,17.37060652]
[1734328963595,244.21835368,3966.0,3965.9,17.37060652]
[1734328963801,242.95763368,3966.0,3965.9,17.37060652]
[1734328964124,242.74993368,3966.0,3965.9,17.37060652]
[1734328964481,236.74745368,3966.0,3965.9,17.37060652]
[1734328964927,234.98373368,3966.0,3965.9,17.37060652]
[1734328965128,233.22001368,3966.0,3965.9,17.37060652]
[1734328965286,230.40385874,3966.0,3965.9,17.37060652]
[1734328965687,228.76869874,3966.0,3965.9,17.37060652]
[1734328966336,228.76869874,3966.0,3965.9,17.12060652]
[1734328967180,228.76869874,3966.0,3965.9,17.37060652]
[1734328967387,227.23358622,3966.0,3965.9,17.37060652]
[1734328969814,226.13252821,3966.0,3965.9,17.37060652]
[1734328970143,224.25788779,3966.0,3965.9,17.37060652]
[1734328970436,224.25788779,3966.0,3965.9,17.24477426]
[1734328971940,223.6280728,3966.0,3965.9,17.24477426]
[1734328972247,222.3673528,3966.0,3965.9,17.37137758]
[1734328974137,222.05795789,3966.0,3965.9,17.37137758]
[1734328974492,220.58953789,3966.0,3965.9,17.37137758]
[1734328974843,220.15885558,3966.0,3965.9,17.37137758]
[1734328975065,216.83821558,3966.0,3965.9,17.37137758]
[1734328975216,212.24675558,3966.0,3965.9,17.37137758]
[1734328975548,210.65076879,3966.0,3965.9,17.37137758]
[1734328977219,210.65076879,3966.0,3965.9,17.12137758]
[1734328978355,205.60788879,3966.0,3965.9,17.37137758]
[1734328978705,204.13946879,3966.0,3965.9,17.37137758]
[1734328979106,203.93176879,3966.0,3965.9,17.37137758]
[1734328979605,200.14960879,3966.0,3965.9,17.37137758]
[1734328979805,198.88888879,3966.0,3965.9,17.37137758]
[1734328980551,198.88888879,3966.0,3965.9,17.12137758]
[1734328981139,198.88888879,3966.0,3965.9,17.37137758]
[1734328981317,198.88888879,3966.0,3965.9,17.12137758]
[1734328981521,198.71502943,3966.0,3965.9,17.12137758]
[1734328982025,198.71502943,3966.0,3965.9,16.30337758]
[1734328982362,197.45430943,3966.0,3965.9,16.30337758]
[1734328982707,189.99362943,3966.0,3965.9,16.55337758]
[1734328982912,189.19552943,3966.0,3965.9,16.55337758]
[1734328983227,185.47469534,3966.0,3965.9,16.55337758]
[1734328986196,184.21397534,3966.0,3965.9,16.55337758]
[1734328986499,178.17183972,3966.0,3965.9,16.55337758]
[1734328986848,176.91111972,3966.0,3965.9,16.55337758]
[1734328987558,173.12895972,3966.0,3965.9,16.55337758]
[1734328987889,171.86823972,3966.0,3965.9,16.55337758]
[1734328988596,169.06431972,3966.0,3965.9,16.55337758]
[1734328988893,133.53068846,3966.0,3965.9,17.62793302]
[1734328989051,133.34268446,3966.0,3965.9,22.8363763]
[1734328989246,119.24580518,3966.0,3965.9,22.8363763]
[1734328989493,110.42959545,3966.0,3965.9,19.93377819]
[1734328989711,110.29066847,3966.0,3965.9,18.40459084]
[1734328989997,97.38589416,3966.0,3965.9,16.09874567]
[1734328990146,88.22020591,3966.0,3965.9,15.78379023]
[1734328990661,79.40399618,3966.0,3965.9,15.78379023]
[1734328990867,69.32706645,3966.0,3965.9,15.78379023]
[1734328991092,64.28418645,3966.0,3965.9,15.78379023]
[1734328991299,55.46797672,3966.0,3965.9,20.13228368]
[1734328991491,55.46797672,3966.0,3965.9,15.78379023]
[1734328991644,55.46797672,3966.0,3965.9,10.14513683]
[1734328991849,55.46797672,3966.0,3965.9,8.13266353]
[1734328992077,55.46797672,3966.0,3965.9,9.89645422]
[1734328992882,55.46797672,3966.0,3965.9,10.88398092]
[1734328993081,55.46797672,3966.0,3965.9,12.12019023]
[1734328994200,55.46797672,3966.0,3965.9,12.31555913]
[1734328994493,55.46797672,3966.0,3965.9,9.61966353]
[1734328997966,55.46797672,3966.0,3965.9,10.60719023]
[1734328998172,55.46797672,3966.0,3965.9,14.29061253]
[1734328998374,55.46797672,3966.0,3965.9,10.60719023]
[1734328999003,54.20725672,3966.0,3965.9,10.60719023]
[1734328999160,49.02388368,3966.0,3965.9,10.60719023]
[1734328999364,49.02388368,3966.0,3965.9,15.80546117]
[1734328999599,49.02388368,3966.0,3965.9,12.12019023]
[1734328999904,44.57162074,3966.0,3965.9,16.35074567]
[1734329000075,42.98288032,3966.0,3965.9,18.65659084]
[1734329000414,41.99042011,3966.0,3965.9,16.35074567]
[1734329000913,37.809802,3966.0,3965.9,18.65659084]
[1734329001213,35.66962405,3966.0,3965.9,16.35074567]
[1734329001904,34.40890405,3966.0,3965.9,16.35074567]
[1734329003080,33.14818405,3966.0,3965.9,13.81073683]
[1734329003405,33.14818405,3966.0,3965.9,9.61966353]
[1734329003821,33.14818405,3966.0,3965.9,9.06966353]
[1734329003977,33.14818405,3966.0,3965.9,10.05719023]
[1734329005418,33.14818405,3966.0,3965.9,10.60719023]
[1734329006298,33.14818405,3966.0,3965.9,15.02419023]
[1734329008292,33.14818405,3966.0,3965.9,14.77419023]
[1734329008528,29.80036639,3966.0,3965.9,15.81379023]
[1734329008736,29.80036639,3966.0,3965.9,12.90979023]
[1734329009888,29.80036639,3966.0,3965.9,10.60719023]
[1734329010794,29.80036639,3966.0,3965.9,9.61966353]
[1734329012293,29.80036639,3966.0,3965.9,13.30490036]
[1734329012489,29.80036639,3966.0,3965.9,9.61966353]
[1734329014316,29.80036639,3966.0,3965.9,10.60719023]
[1734329014544,29.80036639,3966.0,3965.9,11.39529023]
[1734329014750,29.80036639,3966.0,3965.9,15.08039072]
[1734329015048,29.80036639,3966.0,3965.9,11.39529023]
[1734329015250,28.53964639,3966.0,3965.9,15.81229023]
[1734329015417,27.27892639,3966.0,3965.9,15.81229023]
[1734329016645,24.54978639,3966.0,3965.9,15.81229023]
[1734329016855,19.21986324,3966.0,3965.9,15.81229023]
[1734329017148,13.39230924,3966.0,3965.9,15.81229023]
[1734329017348,13.18460924,3966.0,3965.9,15.81229023]
[1734329017553,12.38880924,3966.0,3965.9,15.81229023]
[1734329017755,12.38880924,3966.0,3965.9,20.48054399]
[1734329017756,11.48176714,3966.0,3965.9,20.48054399]
[1734329018051,6.32969713,3966.0,3965.9,18.43309084]
[1734329018239,4.67459804,3966.0,3965.9,16.12724567]
[1734329018445,4.46689804,3966.0,3965.9,16.12724567]
[1734329018752,4.33079804,3966.0,3965.9,16.12724567]
[1734329018906,4.12980809,3966.0,3965.9,20.48041087]
[1734329019248,3.43866114,3966.0,3965.9,15.56229023]
[1734329020004,2.31210172,3966.0,3965.9,15.56229023]
[1734329020443,2.11270172,3966.0,3965.9,15.56229023]
[1734329020903,2.10359734,3966.0,3965.9,15.56229023]
[1734329021761,2.10359734,3966.0,3965.9,14.77419023]
[1734329021977,2.10359734,3966.0,3965.9,12.12019023]
[1734329022267,2.10359734,3966.0,3965.9,14.81826365]
[1734329022469,2.89589734,3966.0,3965.9,9.31773695]
[1734329022639,2.89589734,3966.0,3965.9,6.06966353]
[1734329022818,2.89589734,3966.0,3965.9,4.15116575]
[1734329024369,2.89589734,3966.0,3965.9,7.15116575]
[1734329024577,2.89589734,3966.0,3965.9,10.8602203]
[1734329024869,2.89589734,3966.0,3965.9,9.61966353]
[1734329025050,2.89589734,3966.0,3965.9,10.86013928]
[1734329025365,2.89589734,3966.0,3965.9,12.77863706]
[1734329026554,2.89589734,3966.0,3965.9,12.77840147]
[1734329029152,2.89589734,3966.0,3965.9,12.77784629]
[1734329030356,2.89589734,3966.0,3965.9,9.14222627]
[1734329030556,2.89589734,3966.0,3965.9,4.06554573]
[1734329030788,2.89589734,3966.0,3965.9,6.69784177]
[1734329031246,2.89589734,3966.0,3965.9,4.06554573]
[1734329031575,2.89589734,3966.0,3965.9,6.69784177]
[1734329031756,2.89589734,3966.0,3965.9,4.06554573]
[1734329032094,2.89589734,3966.0,3965.9,6.69784177]
[1734329032446,2.89589734,3966.0,3965.9,3.51554573]
[1734329032756,5.45203655,3966.0,3965.8,1.57921732]
[1734329032942,5.45203655,3966.0,3965.9,1.05296123]
[1734329032943,4.65973655,3966.0,3965.9,1.05296123]
[1734329033388,4.65973655,3966.0,3965.8,1.57921732]
[1734329033589,0.786,3965.9,3965.8,1.57921732]
[1734329033995,0.786,3965.9,3965.8,0.55]
[1734329034471,0.516,3965.9,3965.8,1.60258175]
[1734329035010,0.516,3965.9,3965.8,1.05258175]
[1734329035216,4.65973655,3966.0,3965.7,1.05258175]
[1734329035359,2.10359734,3966.0,3965.7,1.05258175]
[1734329035559,2.10359734,3966.0,3965.6,3.0]
[1734329035560,2.10359734,3966.0,3965.6,4.05258175]
[1734329035866,2.10359734,3966.0,3965.7,0.55]
[1734329037661,0.5461,3965.9,3965.7,0.55]
[1734329038264,0.5461,3965.9,3965.6,0.55]
[1734329040212,0.5461,3965.9,3965.4,1.05258175]
[1734329040213,0.5461,3965.9,3965.5,0.55]
[1734329041178,0.5461,3965.9,3965.5,1.60258175]
[1734329041764,0.5461,3965.9,3965.5,0.55]
[1734329041970,0.5461,3965.9,3965.7,0.55]
[1734329042577,0.5461,3965.9,3965.7,5.59010845]
[1734329042886,2.10359734,3966.0,3965.9,2.81934]
[1734329043040,2.10359734,3966.0,3965.9,5.81934]
[1734329044638,2.10359734,3966.0,3965.9,7.39585186]
[1734329046370,0.43309478,3966.0,3965.9,5.81934]
[1734329047380,0.43309478,3966.0,3965.9,7.39605]
[1734329048737,0.43309478,3966.0,3965.9,7.89717746]
[1734329049752,0.43309478,3966.0,3965.9,6.32046746]
[1734329049982,0.43309478,3966.0,3965.9,7.89763272]
[1734329051871,0.43309478,3966.0,3965.9,7.39650526]
[1734329052059,2.98923399,3966.0,3965.6,1.05172912]
[1734329052261,2.98923399,3966.0,3965.3,2.10535006]
[1734329052262,0.5461,3965.9,3965.5,1.05172912]
[1734329052441,0.5461,3965.9,3965.3,1.05172912]
[1734329052664,0.5461,3965.9,3965.0,1.05172912]
[1734329052944,2.98923399,3966.0,3964.9,1.05172912]
[1734329052945,0.5461,3965.7,3964.9,1.05172912]
[1734329053170,0.5461,3965.7,3964.4,2.27019]
[1734329053171,0.5461,3965.7,3964.8,2.05956212]
[1734329053394,0.5461,3965.7,3964.8,1.007833]
[1734329053544,0.5461,3965.7,3964.7,1.05172912]
[1734329053747,0.5461,3965.5,3964.7,1.05172912]
[1734329054446,0.5461,3965.5,3964.8,0.55]
[1734329054641,0.5461,3965.5,3964.8,1.60172912]
[1734329054848,0.5461,3965.5,3964.8,0.55]
[1734329055495,0.5461,3965.4,3964.7,0.55]
[1734329057377,0.5461,3965.4,3964.6,0.55]
[1734329057942,1.5336267,3965.2,3964.4,0.987527]
[1734329058308,0.5461,3965.1,3964.4,0.987527]
[1734329058596,0.5461,3964.8,3963.8,1.05172912]
[1734329059428,0.9875267,3964.6,3963.5,1.05172912]